fUST/lending_fUST_20250404
["ID","MTS","AMOUNT","RATE_DAILY","PERIOD"]
[357127925,1743772247249,-500.01696355,0.00013972,2]
[357127927,1743772247258,-500.0,0.00013972,2]
[357127929,1743772247268,-500.0,0.00013972,2]
[357127930,1743772247278,-500.0,0.00013972,2]
[357127933,1743772247288,-314.04162622,0.00013972,2]
[357127935,1743772247298,-500.0,0.00013972,2]
[357127937,1743772247308,-500.0,0.00013972,2]
[357127939,1743772247317,-500.0,0.00013972,2]
[357127941,1743772247327,-500.0,0.00013972,2]
[357127943,1743772247338,-500.0,0.00013972,2]
[357127945,1743772247348,-500.0,0.00013972,2]
[357127947,1743772247359,-511.15481675,0.00013972,2]
[357127949,1743772247371,-508.04904457,0.00013972,2]
[357127951,1743772247381,-500.0,0.00013972,2]
[357127953,1743772247393,-500.0,0.00013972,2]
[357127955,1743772247402,-308.25,0.00013972,2]
[357127957,1743772247412,-493.743796,0.00013972,2]
[357127959,1743772247423,-493.743796,0.00013972,2]
[357127961,1743772247433,-493.743796,0.00013972,2]
[357127963,1743772247443,-493.743796,0.00013972,2]
[357127965,1743772247453,-500.0,0.00013972,2]
[357127967,1743772247463,-500.0,0.00013972,2]
[357127969,1743772247473,-151.0,0.00013972,2]
[357127971,1743772247483,-151.0,0.00013972,2]
[357127973,1743772247493,-500.0,0.00013972,2]
[357127975,1743772247502,-500.0,0.00013972,2]
[357127977,1743772247512,-500.0,0.00013972,2]
[357127979,1743772247521,-500.0,0.00013972,2]
[357127981,1743772247531,-500.0,0.00013972,2]
[357127983,1743772247541,-505.28,0.00013972,2]
[357127985,1743772247551,-500.0,0.00013972,2]
[357127987,1743772247560,-500.0,0.00013972,2]
[357127989,1743772247570,-180.148891,0.00013972,2]
[357127991,1743772247580,-180.148891,0.00013972,2]
[357127993,1743772247590,-151.0,0.00013972,2]
[357127996,1743772247600,-251.998515,0.00013972,2]
[357127998,1743772247610,-500.0,0.00013972,2]
[357128000,1743772247620,-180.148891,0.00013972,2]
[357128001,1743772247629,-180.148891,0.00013972,2]
[357128002,1743772247639,-500.0,0.00013972,2]
[357128003,1743772247649,-500.0,0.00013972,2]
[357128004,1743772247658,-500.0,0.00013972,2]
[357128005,1743772247667,-500.0,0.00013972,2]
[357128006,1743772247679,-500.0,0.00013972,2]
[357128007,1743772247689,-155.85251,0.00013972,2]
[357128008,1743772247699,-155.85251,0.00013972,2]
[357128009,1743772247708,-155.85251,0.00013972,2]
[357128010,1743772247717,-155.85251,0.00013972,2]
[357128011,1743772247727,-500.0,0.00013972,2]
[357128012,1743772247736,-151.0,0.00013972,2]
[357128013,1743772247745,-151.0,0.00013972,2]
[357128014,1743772247755,-366.692016,0.00013972,2]
[357128015,1743772247764,-366.692016,0.00013972,2]
[357128016,1743772247774,-366.692016,0.00013972,2]
[357128017,1743772247783,-366.692016,0.00013972,2]
[357128018,1743772247792,-500.0,0.00013972,2]
[357128019,1743772247802,-500.0,0.00013972,2]
[357128020,1743772247812,-151.0,0.00013972,2]
[357128021,1743772247821,-229.818965,0.00013972,2]
[357128022,1743772247831,-500.0,0.00013972,2]
[357128023,1743772247840,-500.0,0.00013972,2]
[357128024,1743772247850,-500.0,0.00013972,2]
[357128025,1743772247859,-500.0,0.00013972,2]
[357128026,1743772247868,-500.0,0.00013972,2]
[357128027,1743772247878,-500.0,0.00013972,2]
[357128028,1743772247887,-500.0,0.00013972,2]
[357128029,1743772247896,-500.0,0.00013972,2]
[357128030,1743772247905,-151.0,0.00013972,2]
[357128031,1743772247915,-151.0,0.00013972,2]
[357128032,1743772247926,-151.0,0.00013972,2]
[357128033,1743772247936,-500.0,0.00013972,2]
[357128034,1743772247946,-204.428345,0.00013972,2]
[357128035,1743772247956,-500.0,0.00013972,2]
[357128036,1743772247965,-253.142009,0.00013972,2]
[357128037,1743772247975,-253.142009,0.00013972,2]
[357128038,1743772247984,-253.142009,0.00013972,2]
[357128039,1743772247993,-253.142009,0.00013972,2]
[357128040,1743772248003,-903.65,0.00013972,2]
[357128041,1743772248013,-500.0,0.00013972,2]
[357128042,1743772248023,-500.0,0.00013972,2]
[357128043,1743772248032,-610.85527029,0.00013972,2]
[357128044,1743772248042,-2157.92,0.00013972,2]
[357128045,1743772248051,-704.26,0.00013972,2]
[357128046,1743772248060,-500.0,0.00013972,2]
[357128047,1743772248070,-500.0,0.00013972,2]
[357128048,1743772248080,-500.0,0.00013972,2]
[357128049,1743772248090,-500.0,0.00013972,2]
[357128050,1743772248100,-500.0,0.00013972,2]
[357128052,1743772248110,-500.0,0.00013972,2]
[357128053,1743772248120,-500.0,0.00013972,2]
[357128054,1743772248130,-270.452546,0.00013972,2]
[357128055,1743772248140,-270.452546,0.00013972,2]
[357128056,1743772248149,-270.452546,0.00013972,2]
[357128057,1743772248160,-270.452546,0.00013972,2]
[357128058,1743772248169,-1456.99,0.00013972,2]
[357128059,1743772248182,-500.0,0.00013972,2]
[357128060,1743772248191,-500.0,0.00013972,2]
[357128061,1743772248200,-209.5802672,0.00013972,2]
[357128062,1743772248210,-513.29207755,0.00013972,2]
[357128063,1743772248220,-500.0,0.00013972,2]
[357128064,1743772248230,-500.0,0.00013972,2]
[357128065,1743772248241,-500.0,0.00013972,2]
[357128066,1743772248254,-449.164837,0.00013972,2]
[357128067,1743772248265,-449.164837,0.00013972,2]
[357128068,1743772248275,-273.24667805,0.00013972,2]
[357128069,1743772248285,-500.0,0.00013972,2]
[357128070,1743772248295,-449.164837,0.00013972,2]
[357128071,1743772248305,-449.164837,0.00013972,2]
[357128072,1743772248315,-500.0,0.00013972,2]
[357128073,1743772248325,-2324.27,0.00013972,2]
[357128074,1743772248335,-500.0,0.00013972,2]
[357128075,1743772248345,-500.0,0.00013972,2]
[357128076,1743772248355,-594.56252327,0.00013972,2]
[357128077,1743772248368,-151.0,0.00013972,2]
[357128079,1743772248378,-151.0,0.00013972,2]
[357128080,1743772248387,-514.55295822,0.00013972,2]
[357128081,1743772248397,-523.57,0.00013972,2]
[357128082,1743772248408,-500.0,0.00013972,2]
[357128083,1743772248418,-500.0,0.00013972,2]
[357128084,1743772248431,-500.0,0.00013972,2]
[357128085,1743772248441,-500.0,0.00013972,2]
[357128086,1743772248451,-500.0,0.00013972,2]
[357128087,1743772248461,-500.0,0.00013972,2]
[357128088,1743772248471,-500.0,0.00013972,2]
[357128089,1743772248481,-500.0,0.00013972,2]
[357128090,1743772248491,-500.0,0.00013972,2]
[357128091,1743772248501,-500.0,0.00013972,2]
[357128092,1743772248511,-500.0,0.00013972,2]
[357128093,1743772248521,-500.0,0.00013972,2]
[357128094,1743772248531,-500.0,0.00013972,2]
[357128095,1743772248541,-500.0,0.00013972,2]
[357128096,1743772248550,-1204.14,0.00013972,2]
[357128097,1743772248560,-500.0,0.00013972,2]
[357128098,1743772248570,-898.89,0.00013972,2]
[357128099,1743772248580,-3701.275918,0.00013972,2]
[357128100,1743772248590,-3701.275918,0.00013972,2]
[357128101,1743772248600,-3701.275918,0.00013972,2]
[357128102,1743772248610,-3701.275918,0.00013972,2]
[357128103,1743772248621,-500.0,0.00013972,2]
[357128104,1743772248631,-886.78,0.00013972,2]
[357128105,1743772248641,-500.0,0.00013972,2]
[357128106,1743772248651,-500.0,0.00013972,2]
[357128107,1743772248661,-171.33439575,0.00013972,2]
[357128109,1743772248671,-500.0,0.00013972,2]
[357128110,1743772248685,-500.0,0.00013972,2]
[357128112,1743772248696,-4775.01,0.00013972,2]
[357128113,1743772248707,-500.0,0.00013972,2]
[357128114,1743772248850,-908.798668,0.00013972,2]
[357128115,1743772248861,-908.798668,0.00013972,2]
[357128116,1743772248871,-500.0,0.00013972,2]
[357128117,1743772248882,-500.0,0.00013972,2]
[357128118,1743772248897,-908.798668,0.00013972,2]
[357128119,1743772248906,-908.798668,0.00013972,2]
[357128120,1743772248917,-500.0,0.00013972,2]
[357128121,1743772248928,-500.0,0.00013972,2]
[357128122,1743772248938,-500.0,0.00013972,2]
[357128123,1743772248948,-500.0,0.00013972,2]
[357128124,1743772248958,-500.0,0.00013972,2]
[357128125,1743772248968,-530.62,0.00013972,2]
[357128126,1743772248978,-500.0,0.00013972,2]
[357128127,1743772248988,-500.0,0.00013972,2]
[357128128,1743772248998,-636.91,0.00013972,2]
[357128129,1743772249008,-500.0,0.00013972,2]
[357128130,1743772249017,-2116.36,0.00013972,2]
[357128131,1743772249027,-542.46611626,0.00013998,2]
[357128132,1743772249037,-500.0,0.0001418,2]
[357128133,1743772249048,-500.0,0.00014246,2]
[357128134,1743772249058,-500.0,0.00014246,2]
[357128135,1743772249068,-500.0,0.00014246,2]
[357128136,1743772249077,-500.0,0.00014246,2]
[357128137,1743772249087,-500.0,0.00014246,2]
[357128138,1743772249096,-312.26527098,0.00014246,2]
[357128139,1743772249106,-500.0,0.00014246,2]
[357128140,1743772249117,-500.0,0.00014246,2]
[357128141,1743772249126,-500.0,0.00014246,2]
[357128142,1743772249136,-500.0,0.00014246,2]
[357128143,1743772249146,-500.0,0.00014246,2]
[357128144,1743772249156,-500.0,0.00014246,2]
[357128145,1743772249166,-500.0,0.00014246,2]
[357128146,1743772249176,-298.43700835,0.00014246,2]
[357128147,1743772249185,-493.743796,0.00014246,2]
[357128148,1743772249195,-493.743796,0.00014246,2]
[357128149,1743772249205,-500.0,0.00014246,2]
[357128150,1743772249215,-433.87416851,0.00014246,2]
[357128151,1743772249225,-151.0,0.00014246,2]
[357128152,1743772249234,-500.0,0.00014246,2]
[357128153,1743772249244,-500.0,0.00014246,2]
[357128154,1743772249253,-500.0,0.00014246,2]
[357128155,1743772249263,-500.0,0.00014246,2]
[357128156,1743772249273,-500.0,0.00014246,2]
[357128157,1743772249282,-505.28,0.00014246,2]
[357128158,1743772249292,-500.0,0.00014246,2]
[357128159,1743772249302,-500.0,0.00014246,2]
[357128160,1743772249312,-180.148891,0.00014246,2]
[357128161,1743772249322,-500.0,0.00014246,2]
[357128162,1743772249332,-180.148891,0.00014246,2]
[357128163,1743772249341,-500.0,0.00014246,2]
[357128164,1743772249351,-500.0,0.00014246,2]
[357128165,1743772249365,-500.0,0.00014246,2]
[357128166,1743772249375,-500.0,0.00014246,2]
[357128167,1743772249385,-155.85251,0.00014246,2]
[357128168,1743772249395,-155.85251,0.00014246,2]
[357128169,1743772249405,-500.0,0.00014246,2]
[357128170,1743772249415,-366.692016,0.00014246,2]
[357128171,1743772249426,-366.692016,0.00014246,2]
[357128172,1743772249436,-631.5,0.00014246,2]
[357128173,1743772249447,-500.0,0.00014246,2]
[357128174,1743772249456,-500.0,0.00014246,2]
[357128175,1743772249466,-500.0,0.00014246,2]
[357128176,1743772249475,-500.0,0.00014246,2]
[357128177,1743772249486,-500.0,0.00014246,2]
[357128178,1743772249496,-151.0,0.00014246,2]
[357128179,1743772249506,-500.0,0.00014246,2]
[357128180,1743772249516,-253.142009,0.00014246,2]
[357128181,1743772249525,-253.142009,0.00014246,2]
[357128182,1743772249537,-903.65,0.00014246,2]
[357128183,1743772249547,-500.0,0.00014246,2]
[357128184,1743772249558,-500.0,0.00014246,2]
[357128185,1743772249568,-2157.92,0.00014246,2]
[357128186,1743772249578,-704.26,0.00014246,2]
[357128187,1743772249589,-607.05651899,0.00014246,2]
[357128188,1743772249599,-330.52776112,0.00014246,2]
[357128189,1743772249609,-500.0,0.00014246,2]
[357128190,1743772249619,-500.0,0.00014246,2]
[357128191,1743772249630,-270.452546,0.00014246,2]
[357128192,1743772249641,-270.452546,0.00014246,2]
[357128193,1743772249651,-1456.99,0.00014246,2]
[357128194,1743772249662,-500.0,0.00014246,2]
[357128195,1743772249672,-500.0,0.00014246,2]
[357128196,1743772249683,-500.0,0.00014246,2]
[357128197,1743772249693,-500.0,0.00014246,2]
[357128198,1743772249703,-449.164837,0.00014246,2]
[357128199,1743772249714,-500.0,0.00014246,2]
[357128200,1743772249723,-449.164837,0.00014246,2]
[357128201,1743772249734,-500.0,0.00014246,2]
[357128202,1743772249744,-2324.27,0.00014246,2]
[357128203,1743772249753,-611.82,0.00014246,2]
[357128204,1743772249763,-500.0,0.00014246,2]
[357128205,1743772249774,-151.0,0.00014246,2]
[357128206,1743772249783,-523.57,0.00014246,2]
[357128207,1743772249793,-252.21676355,0.00014246,2]
[357128208,1743772249803,-500.0,0.00014246,2]
[357128209,1743772249812,-500.0,0.00014246,2]
[357128210,1743772249822,-500.0,0.00014246,2]
[357128211,1743772249832,-500.0,0.00014246,2]
[357128212,1743772249842,-500.0,0.00014246,2]
[357128213,1743772249852,-500.0,0.00014246,2]
[357128214,1743772249862,-500.0,0.00014246,2]
[357128215,1743772249872,-500.0,0.00014246,2]
[357128216,1743772249883,-500.0,0.00014246,2]
[357128217,1743772249893,-500.0,0.00014246,2]
[357128218,1743772249903,-1204.14,0.00014246,2]
[357128219,1743772249913,-898.89,0.00014246,2]
[357128220,1743772249923,-3701.275918,0.00014246,2]
[357128221,1743772249933,-2612.99447756,0.00014246,2]
[357128222,1743772250188,-500.0,0.00013972,2]
[357128223,1743772250198,-883.9066533,0.00014246,2]
[357128224,1743772250210,-204.37478714,0.00014246,2]
[357128225,1743772250220,-609.66612227,0.00014246,2]
[357128226,1743772250230,-886.78,0.00014246,2]
[357128227,1743772250239,-500.0,0.00014246,2]
[357128228,1743772250249,-500.0,0.00014246,2]
[357128229,1743772250259,-500.0,0.00014246,2]
[357128230,1743772250269,-1529.17909064,0.00014246,2]
[357128231,1743772250281,-623.30264676,0.00014246,2]
[357128232,1743772250294,-2622.5282626,0.00014246,2]
[357128233,1743772250304,-500.0,0.00014246,2]
[357128234,1743772250313,-908.798668,0.00014246,2]
[357128235,1743772250323,-500.0,0.00014246,2]
[357128236,1743772250333,-908.798668,0.00014246,2]
[357128237,1743772250343,-500.0,0.00014246,2]
[357128238,1743772250352,-500.0,0.00014246,2]
[357128239,1743772250366,-582.20646763,0.00014246,2]
[357128240,1743772250375,-500.0,0.00014246,2]
[357128241,1743772250385,-500.0,0.00014246,2]
[357128242,1743772250395,-530.62,0.00014246,2]
[357128243,1743772250406,-500.0,0.00014246,2]
[357128244,1743772250415,-636.91,0.00014246,2]
[357128245,1743772250425,-500.0,0.00014246,2]
[357128246,1743772250436,-2116.36,0.00014246,2]
[357128247,1743772250446,-500.0,0.00014246,2]
[357128248,1743772250456,-1000.000001,0.00014268,2]
[357128249,1743772250467,-500.0,0.0001452,2]
[357128250,1743772250476,-535.80065046,0.0001452,2]
[357128251,1743772250485,-500.0,0.0001452,2]
[357128252,1743772250495,-500.0,0.0001452,2]
[357128253,1743772250505,-500.0,0.0001452,2]
[357128254,1743772250515,-500.0,0.0001452,2]
[357128255,1743772250525,-500.0,0.0001452,2]
[357128256,1743772250534,-500.0,0.0001452,2]
[357128257,1743772250544,-500.0,0.0001452,2]
[357128258,1743772250554,-500.0,0.0001452,2]
[357128259,1743772250563,-493.743796,0.0001452,2]
[357128260,1743772250573,-493.743787,0.0001452,2]
[357128261,1743772250583,-500.0,0.0001452,2]
[357128262,1743772250594,-151.0,0.0001452,2]
[357128263,1743772250604,-500.0,0.0001452,2]
[357128264,1743772250614,-500.0,0.0001452,2]
[357128265,1743772250624,-500.0,0.0001452,2]
[357128266,1743772250634,-500.0,0.0001452,2]
[357128267,1743772250645,-559.12,0.0001452,2]
[357128268,1743772250655,-505.28,0.0001452,2]
[357128269,1743772250665,-500.0,0.0001452,2]
[357128270,1743772250678,-500.0,0.0001452,2]
[357128271,1743772250688,-180.148891,0.0001452,2]
[357128272,1743772250726,-500.0,0.0001452,2]
[357128273,1743772250737,-180.148899,0.0001452,2]
[357128274,1743772250747,-570.41554196,0.0001452,2]
[357128275,1743772250757,-282.44071114,0.0001452,2]
[357128276,1743772250766,-500.0,0.0001452,2]
[357128277,1743772250776,-513.32,0.0001452,2]
[357128278,1743772250786,-155.85251,0.0001452,2]
[357128279,1743772250796,-155.852516,0.0001452,2]
[357128280,1743772250805,-500.0,0.0001452,2]
[357128281,1743772250815,-366.692016,0.0001452,2]
[357128282,1743772250825,-366.692012,0.0001452,2]
[357128283,1743772250834,-361.52,0.0001452,2]
[357128284,1743772250844,-500.0,0.0001452,2]
[357128285,1743772250854,-500.0,0.0001452,2]
[357128286,1743772250863,-500.0,0.0001452,2]
[357128287,1743772250874,-151.0,0.0001452,2]
[357128288,1743772250883,-500.0,0.0001452,2]
[357128289,1743772250894,-253.142009,0.0001452,2]
[357128290,1743772250904,-253.142005,0.0001452,2]
[357128291,1743772250914,-903.65,0.0001452,2]
[357128292,1743772250923,-500.0,0.0001452,2]
[357128293,1743772250934,-2157.92,0.0001452,2]
[357128294,1743772250944,-704.26,0.0001452,2]
[357128295,1743772250953,-500.0,0.0001452,2]
[357128296,1743772250963,-270.452546,0.0001452,2]
[357128297,1743772250973,-270.452539,0.0001452,2]
[357128298,1743772250983,-1456.99,0.0001452,2]
[357128299,1743772250993,-500.0,0.0001452,2]
[357128300,1743772251002,-500.0,0.0001452,2]
[357128301,1743772251012,-500.0,0.0001452,2]
[357128302,1743772251022,-500.0,0.0001452,2]
[357128303,1743772251032,-449.164837,0.0001452,2]
[357128304,1743772251042,-500.0,0.0001452,2]
[357128305,1743772251051,-449.164845,0.0001452,2]
[357128306,1743772251061,-500.0,0.0001452,2]
[357128307,1743772251071,-2324.27,0.0001452,2]
[357128308,1743772251080,-500.0,0.0001452,2]
[357128309,1743772251090,-241.667129,0.0001452,2]
[357128310,1743772251099,-523.57,0.0001452,2]
[357128311,1743772251109,-500.0,0.0001452,2]
[357128312,1743772251119,-387.74694623,0.0001452,2]
[357128313,1743772251128,-500.0,0.0001452,2]
[357128314,1743772251138,-183.97650888,0.0001452,2]
[357128315,1743772251147,-500.0,0.0001452,2]
[357128316,1743772251156,-500.0,0.0001452,2]
[357128317,1743772251166,-500.0,0.0001452,2]
[357128318,1743772251176,-500.0,0.0001452,2]
[357128319,1743772251185,-523.11,0.0001452,2]
[357128320,1743772251195,-500.0,0.0001452,2]
[357128321,1743772251205,-1204.14,0.0001452,2]
[357128322,1743772251214,-898.89,0.0001452,2]
[357128323,1743772251224,-3701.275918,0.0001452,2]
[357128324,1743772251234,-3701.275914,0.0001452,2]
[357128325,1743772251245,-886.78,0.0001452,2]
[357128326,1743772251254,-404.01277083,0.0001452,2]
[357128327,1743772251264,-500.0,0.0001452,2]
[357128328,1743772251274,-500.0,0.0001452,2]
[357128329,1743772251284,-4775.01,0.0001452,2]
[357128330,1743772251293,-908.798668,0.0001452,2]
[357128331,1743772251303,-504.37,0.0001452,2]
[357128332,1743772251312,-908.798662,0.0001452,2]
[357128333,1743772251321,-500.0,0.0001452,2]
[357128334,1743772251331,-500.0,0.0001452,2]
[357128335,1743772251340,-500.0,0.0001452,2]
[357128336,1743772251350,-500.0,0.0001452,2]
[357128337,1743772251361,-530.62,0.0001452,2]
[357128338,1743772251371,-636.91,0.0001452,2]
[357128339,1743772251380,-2116.36,0.0001452,2]
[357128340,1743772251389,-221.36,0.0001452,2]
[357128341,1743772251400,-500.0,0.00014794,2]
[357128342,1743772251409,-500.0,0.00014794,2]
[357128343,1743772251419,-500.0,0.00014794,2]
[357128344,1743772251428,-500.0,0.00014794,2]
[357128345,1743772251439,-500.0,0.00014794,2]
[357128346,1743772251449,-500.0,0.00014794,2]
[357128347,1743772251459,-500.0,0.00014794,2]
[357128348,1743772251468,-500.0,0.00014794,2]
[357128349,1743772251478,-500.0,0.00014794,2]
[357128350,1743772251487,-500.0,0.00014794,2]
[357128351,1743772251496,-441.42,0.00014794,2]
[357128352,1743772251505,-500.0,0.00014794,2]
[357128353,1743772251515,-500.0,0.00014794,2]
[357128354,1743772251524,-359.26,0.00014794,2]
[357128355,1743772251533,-505.28,0.00014794,2]
[357128356,1743772251543,-494.38,0.00014794,2]
[357128357,1743772251552,-500.0,0.00014794,2]
[357128358,1743772251562,-500.0,0.00014794,2]
[357128359,1743772251571,-500.0,0.00014794,2]
[357128360,1743772251580,-500.0,0.00014794,2]
[357128361,1743772251589,-500.0,0.00014794,2]
[357128362,1743772251598,-500.0,0.00014794,2]
[357128363,1743772251608,-500.0,0.00014794,2]
[357128364,1743772251618,-500.0,0.00014794,2]
[357128365,1743772251627,-903.65,0.00014794,2]
[357128366,1743772251637,-500.0,0.00014794,2]
[357128367,1743772251646,-2157.92,0.00014794,2]
[357128368,1743772251656,-704.26,0.00014794,2]
[357128369,1743772251666,-500.0,0.00014794,2]
[357128370,1743772251677,-1456.99,0.00014794,2]
[357128371,1743772251687,-500.0,0.00014794,2]
[357128372,1743772251697,-500.0,0.00014794,2]
[357128373,1743772251707,-500.0,0.00014794,2]
[357128374,1743772251716,-500.0,0.00014794,2]
[357128375,1743772251727,-261.37,0.00014794,2]
[357128376,1743772251736,-2324.27,0.00014794,2]
[357128377,1743772251746,-625.03383704,0.00014794,2]
[357128378,1743772251756,-523.57,0.00014794,2]
[357128379,1743772251774,-500.0,0.00014794,2]
[357128380,1743772251784,-490.78089058,0.00014794,2]
[357128381,1743772251794,-500.0,0.00014794,2]
[357128382,1743772251803,-500.0,0.00014794,2]
[357128383,1743772251812,-500.0,0.00014794,2]
[357128384,1743772251822,-500.0,0.00014794,2]
[357128385,1743772251832,-500.0,0.00014794,2]
[357128386,1743772251842,-1204.14,0.00014794,2]
[357128387,1743772251851,-898.89,0.00014794,2]
[357128388,1743772251861,-886.78,0.00014794,2]
[357128389,1743772251871,-4775.01,0.00014794,2]
[357128390,1743772251880,-500.0,0.00014794,2]
[357128391,1743772251890,-500.0,0.00014794,2]
[357128392,1743772251900,-500.0,0.00014794,2]
[357128393,1743772251909,-500.0,0.00014794,2]
[357128394,1743772251918,-530.62,0.00014794,2]
[357128395,1743772251929,-636.91,0.00014794,2]
[357128396,1743772251939,-2116.36,0.00014794,2]
[357128397,1743772251948,-415.15952751,0.00014863,2]
[357128398,1743772251958,-583.0,0.00015,2]
[357128399,1743772251968,-1865.0,0.00015,2]
[357128400,1743772251977,-185.0,0.00015,20]
[357128401,1743772251987,-587.0,0.00015001,2]
[357128402,1743772251997,-500.0,0.00015068,2]
[357128403,1743772252006,-500.0,0.00015068,2]
[357128404,1743772252016,-250.59540558,0.00015068,2]
[357128405,1743772252025,-500.0,0.00015068,2]
[357128406,1743772252035,-500.0,0.00015068,2]
[357128407,1743772252044,-500.0,0.00015068,2]
[357128408,1743772252054,-500.0,0.00015068,2]
[357128409,1743772252063,-500.0,0.00015068,2]
[357128410,1743772252073,-500.0,0.00015068,2]
[357128411,1743772252083,-505.28,0.00015068,2]
[357128412,1743772252093,-500.00000052,0.00015068,2]
[357128413,1743772252103,-500.0,0.00015068,2]
[357128414,1743772252113,-330.91,0.00015068,2]
[357128415,1743772252122,-500.0,0.00015068,2]
[357128416,1743772252132,-500.0,0.00015068,2]
[357128417,1743772252141,-903.65,0.00015068,2]
[357128418,1743772252151,-500.0,0.00015068,2]
[357128419,1743772252161,-2157.92,0.00015068,2]
[357128420,1743772252171,-704.26,0.00015068,2]
[357128421,1743772252182,-500.0,0.00015068,2]
[357128422,1743772252192,-1456.99,0.00015068,2]
[357128423,1743772252202,-500.0,0.00015068,2]
[357128424,1743772252212,-500.0,0.00015068,2]
[357128425,1743772252222,-500.0,0.00015068,2]
[357128426,1743772252232,-500.0,0.00015068,2]
[357128427,1743772252242,-2324.27,0.00015068,2]
[357128428,1743772252252,-523.57,0.00015068,2]
[357128429,1743772252262,-500.0,0.00015068,2]
[357128430,1743772252271,-500.0,0.00015068,2]
[357128431,1743772252281,-500.0,0.00015068,2]
[357128432,1743772252291,-621.46,0.00015068,2]
[357128433,1743772252301,-500.0,0.00015068,2]
[357128434,1743772252311,-500.0,0.00015068,2]
[357128435,1743772252320,-1204.14,0.00015068,2]
[357128436,1743772252330,-898.89,0.00015068,2]
[357128437,1743772252340,-886.78,0.00015068,2]
[357128438,1743772252350,-4775.01,0.00015068,2]
[357128439,1743772252364,-500.0,0.00015068,2]
[357128440,1743772252374,-227.56,0.00015068,2]
[357128441,1743772252383,-500.0,0.00015068,2]
[357128442,1743772252393,-500.0,0.00015068,2]
[357128443,1743772252403,-530.62,0.00015068,2]
[357128444,1743772252413,-636.91,0.00015068,2]
[357128445,1743772252423,-2116.36,0.00015068,2]
[357128446,1743772252435,-7657.84968983,0.000153,2]
[357128447,1743772252444,-7657.84968971,0.000153,2]
[357128448,1743772252454,-500.0,0.00015342,2]
[357128449,1743772252463,-500.0,0.00015342,2]
[357128450,1743772252474,-400.07069233,0.00015342,2]
[357128451,1743772252483,-500.0,0.00015342,2]
[357128452,1743772252493,-553.1510027,0.00015342,2]
[357128453,1743772252502,-500.0,0.00015342,2]
[357128454,1743772252512,-505.28,0.00015342,2]
[357128455,1743772252522,-500.0,0.00015342,2]
[357128456,1743772252531,-500.0,0.00015342,2]
[357128457,1743772252542,-500.0,0.00015342,2]
[357128458,1743772252551,-903.65,0.00015342,2]
[357128459,1743772252561,-500.0,0.00015342,2]
[357128460,1743772252570,-2157.92,0.00015342,2]
[357128461,1743772252580,-704.26,0.00015342,2]
[357128462,1743772252595,-500.0,0.00015342,2]
[357128463,1743772252605,-1456.99,0.00015342,2]
[357128464,1743772252614,-500.0,0.00015342,2]
[357128465,1743772252625,-500.0,0.00015342,2]
[357128466,1743772252635,-500.0,0.00015342,2]